fUST/lending_fUST_20250603
["ID","MTS","AMOUNT","RATE_DAILY","PERIOD"]
[363928834,1748933450319,-1422.91,0.00018082,2]
[363928835,1748933450329,-1957.17,0.00018082,2]
[363928836,1748933450339,-440.0,0.00018082,2]
[363928837,1748933450349,-440.0,0.00018082,2]
[363928838,1748933450359,-440.0,0.00018082,2]
[363928839,1748933450369,-886.05,0.00018082,2]
[363928840,1748933450379,-151.0,0.00018082,2]
[363928841,1748933450390,-440.0,0.00018082,2]
[363928842,1748933450400,-151.0,0.00018082,2]
[363928843,1748933450410,-440.0,0.00018082,2]
[363928844,1748933450420,-440.0,0.00018082,2]
[363928845,1748933450429,-440.0,0.00018082,2]
[363928846,1748933450440,-440.0,0.00018082,2]
[363928847,1748933450450,-163.25,0.00018082,2]
[363928848,1748933450460,-1471.23,0.00018082,2]
[363928849,1748933450469,-408.13232613,0.00018082,2]
[363928850,1748933450480,-654.81,0.00018082,2]
[363928851,1748933450490,-2390.55,0.00018082,2]
[363928852,1748933450500,-2074.06,0.00018082,2]
[363928853,1748933450509,-2284.02,0.00018082,2]
[363928854,1748933450520,-440.0,0.00018082,2]
[363928855,1748933450530,-2371.77,0.00018082,2]
[363928856,1748933450539,-521.81,0.00018082,2]
[363928857,1748933450549,-468.91,0.00018082,2]
[363928858,1748933450558,-484.71,0.00018082,2]
[363928859,1748933450568,-970.29,0.00018082,2]
[363928860,1748933450578,-440.0,0.00018082,2]
[363928861,1748933450588,-440.0,0.00018082,2]
[363928862,1748933450597,-1039.91,0.00018082,2]
[363928863,1748933450606,-440.0,0.00018082,2]
[363928864,1748933450616,-940.37,0.00018082,2]
[363928865,1748933450625,-440.0,0.00018082,2]
[363928866,1748933450635,-332.55,0.00018082,2]
[363928867,1748933450646,-440.0,0.00018082,2]
[363928868,1748933450656,-805.93,0.00018082,2]
[363928869,1748933450665,-1096.13,0.00018082,2]
[363928870,1748933450675,-440.0,0.00018082,2]
[363928871,1748933450684,-564.95,0.00018082,2]
[363928872,1748933450694,-440.0,0.00018082,2]
[363928873,1748933450704,-440.0,0.00018082,2]
[363928874,1748933450714,-813.99,0.00018082,2]
[363928875,1748933450723,-470.23,0.00018082,2]
[363928876,1748933450733,-440.0,0.00018082,2]
[363928877,1748933450742,-2049.75681905,0.00018107,2]
[363928878,1748933450752,-1006.7984358,0.00018163,2]
[363928879,1748933450762,-1016.1585272,0.00018163,2]
[363928880,1748933450771,-1388.48,0.00018177,2]
[363928881,1748933450781,-500.0,0.00018186,2]
[363928882,1748933450791,-1018.95928991,0.00018255,2]
[363928883,1748933450800,-4520.66680072,0.00018256,2]
[363928884,1748933450810,-1520.41100821,0.00018268,2]
[363928885,1748933450819,-2049.75681905,0.00018348,2]
[363928886,1748933450829,-12127.55565132,0.00018356,2]
[363928887,1748933450840,-4097.35445668,0.00018356,3]
[363928888,1748933450849,-440.0,0.00018356,2]
[363928889,1748933450859,-440.0,0.00018356,2]
[363928890,1748933450869,-440.0,0.00018356,2]
[363928891,1748933450878,-440.0,0.00018356,2]
[363928892,1748933450887,-440.0,0.00018356,2]
[363928893,1748933450899,-440.0,0.00018356,2]
[363928894,1748933450908,-440.0,0.00018356,2]
[363928895,1748933450918,-554.7,0.00018356,2]
[363928896,1748933450928,-440.0,0.00018356,2]
[363928897,1748933450937,-1422.91,0.00018356,2]
[363928898,1748933450946,-1957.17,0.00018356,2]
[363928899,1748933450956,-440.0,0.00018356,2]
[363928900,1748933450967,-440.0,0.00018356,2]
[363928901,1748933450976,-440.0,0.00018356,2]
[363928902,1748933450986,-886.05,0.00018356,2]
[363928903,1748933450996,-440.0,0.00018356,2]
[363928904,1748933451006,-318.51599,0.00018356,2]
[363928905,1748933451017,-440.0,0.00018356,2]
[363928906,1748933451027,-440.0,0.00018356,2]
[363928907,1748933451037,-318.51599,0.00018356,2]
[363928908,1748933451047,-440.0,0.00018356,2]
[363928909,1748933451057,-440.0,0.00018356,2]
[363928910,1748933451066,-1471.23,0.00018356,2]
[363928911,1748933451076,-654.81,0.00018356,2]
[363928912,1748933451085,-2390.55,0.00018356,2]
[363928913,1748933451095,-2074.06,0.00018356,2]
[363928914,1748933451104,-151.0,0.00018356,2]
[363928915,1748933451114,-2284.02,0.00018356,2]
[363928916,1748933451124,-440.0,0.00018356,2]
[363928917,1748933451134,-2371.77,0.00018356,2]
[363928918,1748933451143,-151.0,0.00018356,2]
[363928919,1748933451153,-521.81,0.00018356,2]
[363928920,1748933451163,-468.91,0.00018356,2]
[363928921,1748933451173,-484.71,0.00018356,2]
[363928922,1748933451183,-970.29,0.00018356,2]
[363928923,1748933451288,-440.0,0.00018356,2]
[363928924,1748933451298,-440.0,0.00018356,2]
[363928925,1748933451309,-1039.91,0.00018356,2]
[363928926,1748933451323,-440.0,0.00018356,2]
[363928927,1748933451333,-940.37,0.00018356,2]
[363928928,1748933451343,-562.92767852,0.00018356,2]
[363928929,1748933451353,-440.0,0.00018356,2]
[363928930,1748933451362,-805.93,0.00018356,2]
[363928931,1748933451371,-1096.13,0.00018356,2]
[363928932,1748933451381,-440.0,0.00018356,2]
[363928933,1748933451390,-440.0,0.00018356,2]
[363928934,1748933451401,-440.0,0.00018356,2]
[363928935,1748933451411,-813.99,0.00018356,2]
[363928936,1748933451421,-470.23,0.00018356,2]
[363928937,1748933451431,-440.0,0.00018356,2]
[363928938,1748933451441,-2049.75681905,0.0001859,2]
[363928939,1748933451451,-1388.48,0.00018619,2]
[363928940,1748933451461,-440.0,0.0001863,2]
[363928941,1748933451471,-440.0,0.0001863,2]
[363928942,1748933451480,-440.0,0.0001863,2]
[363928943,1748933451490,-440.0,0.0001863,2]
[363928944,1748933451500,-440.0,0.0001863,2]
[363928945,1748933451510,-440.0,0.0001863,2]
[363928946,1748933451520,-261.942965,0.0001863,2]
[363928947,1748933451529,-151.0,0.0001863,2]
[363928948,1748933451538,-440.0,0.0001863,2]
[363928949,1748933451549,-554.7,0.0001863,2]
[363928950,1748933451559,-440.0,0.0001863,2]
[363928951,1748933451569,-1422.91,0.0001863,2]
[363928952,1748933451579,-1957.17,0.0001863,2]
[363928953,1748933451589,-1712.149265,0.0001863,2]
[363928954,1748933451599,-440.0,0.0001863,2]
[363928955,1748933451609,-1712.149265,0.0001863,2]
[363928956,1748933451619,-440.0,0.0001863,2]
[363928957,1748933451629,-440.0,0.0001863,2]
[363928958,1748933451639,-886.05,0.0001863,2]
[363928959,1748933451650,-151.0,0.0001863,2]
[363928960,1748933451660,-440.0,0.0001863,2]
[363928961,1748933451670,-151.0,0.0001863,2]
[363928962,1748933451680,-440.0,0.0001863,2]
[363928963,1748933451690,-483.68,0.0001863,2]
[363928964,1748933451700,-440.0,0.0001863,2]
[363928965,1748933451712,-440.0,0.0001863,2]
[363928966,1748933451722,-1471.23,0.0001863,2]
[363928967,1748933451731,-294.341028,0.0001863,2]
[363928968,1748933451741,-654.81,0.0001863,2]
[363928969,1748933451751,-2390.55,0.0001863,2]
[363928970,1748933451761,-294.341028,0.0001863,2]
[363928971,1748933451772,-321.101702,0.0001863,2]
[363928972,1748933451786,-2074.06,0.0001863,2]
[363928973,1748933451797,-2284.02,0.0001863,2]
[363928974,1748933451809,-321.101702,0.0001863,2]
[363928975,1748933451820,-440.0,0.0001863,2]
[363928976,1748933451831,-2371.77,0.0001863,2]
[363928977,1748933451842,-521.81,0.0001863,2]
[363928978,1748933451853,-468.91,0.0001863,2]
[363928979,1748933451863,-484.71,0.0001863,2]
[363928980,1748933451873,-970.29,0.0001863,2]
[363928981,1748933451883,-440.0,0.0001863,2]
[363928982,1748933451892,-440.0,0.0001863,2]
[363928983,1748933451902,-1039.91,0.0001863,2]
[363928984,1748933451911,-440.0,0.0001863,2]
[363928985,1748933451921,-940.37,0.0001863,2]
[363928986,1748933451931,-440.0,0.0001863,2]
[363928987,1748933451940,-805.93,0.0001863,2]
[363928988,1748933451950,-1096.13,0.0001863,2]
[363928989,1748933451960,-440.0,0.0001863,2]
[363928990,1748933451969,-170.3752096,0.0001863,2]
[363928991,1748933451979,-440.0,0.0001863,2]
[363928992,1748933451989,-813.99,0.0001863,2]
[363928993,1748933451999,-470.23,0.0001863,2]
[363928994,1748933452008,-440.0,0.0001863,2]
[363928995,1748933452018,-400.002,0.0001875,2]
[363928996,1748933452027,-2049.75681905,0.00018831,2]
[363928997,1748933452037,-1759.81617934,0.000189,2]
[363928998,1748933452047,-1388.48,0.00018903,2]
[363928999,1748933452057,-500.0,0.00018903,2]
[363929000,1748933452068,-500.0,0.00018903,2]
[363929001,1748933452078,-500.0,0.00018903,2]
[363929002,1748933452088,-500.0,0.00018903,2]
[363929003,1748933452098,-500.0,0.00018903,2]
[363929004,1748933452108,-498.80257578,0.00018903,2]
[363929005,1748933452118,-500.0,0.00018903,2]
[363929006,1748933452127,-500.0,0.00018903,2]
[363929007,1748933452137,-500.0,0.00018903,2]
[363929008,1748933452148,-500.0,0.00018903,2]
[363929009,1748933452158,-440.0,0.00018904,2]
[363929010,1748933452167,-440.0,0.00018904,2]
[363929011,1748933452177,-440.0,0.00018904,2]
[363929012,1748933452189,-440.0,0.00018904,2]
[363929013,1748933452209,-440.0,0.00018904,2]
[363929014,1748933452231,-440.0,0.00018904,2]
[363929015,1748933452255,-440.0,0.00018904,2]
[363929016,1748933452278,-554.7,0.00018904,2]
[363929017,1748933452303,-358.73071873,0.00018904,2]
[363929018,1748933452325,-1422.91,0.00018904,2]
[363929019,1748933452347,-1957.17,0.00018904,2]
[363929020,1748933452369,-440.0,0.00018904,2]
[363929021,1748933452393,-440.0,0.00018904,2]
[363929022,1748933452415,-440.0,0.00018904,2]
[363929023,1748933452425,-886.05,0.00018904,2]
[363929024,1748933452435,-440.0,0.00018904,2]
[363929025,1748933452444,-440.0,0.00018904,2]
[363929026,1748933452454,-440.0,0.00018904,2]
[363929027,1748933452463,-510.03,0.00018904,2]
[363929028,1748933452472,-1471.23,0.00018904,2]
[363929029,1748933452482,-654.81,0.00018904,2]
[363929030,1748933452491,-2390.55,0.00018904,2]
[363929031,1748933452501,-2074.06,0.00018904,2]
[363929032,1748933452510,-2284.02,0.00018904,2]
[363929033,1748933452519,-440.0,0.00018904,2]
[363929034,1748933452530,-2371.77,0.00018904,2]
[363929035,1748933452541,-521.81,0.00018904,2]
[363929036,1748933452550,-468.91,0.00018904,2]
[363929037,1748933452559,-484.71,0.00018904,2]
[363929038,1748933452568,-970.29,0.00018904,2]
[363929039,1748933452578,-440.0,0.00018904,2]
[363929040,1748933452587,-440.0,0.00018904,2]
[363929041,1748933452596,-1039.91,0.00018904,2]
[363929042,1748933452605,-440.0,0.00018904,2]
[363929043,1748933452616,-940.37,0.00018904,2]
[363929044,1748933452625,-440.0,0.00018904,2]
[363929045,1748933452635,-805.93,0.00018904,2]
[363929046,1748933452644,-1096.13,0.00018904,2]
[363929047,1748933452654,-440.0,0.00018904,2]
[363929048,1748933452663,-440.0,0.00018904,2]
[363929049,1748933452673,-813.99,0.00018904,2]
[363929050,1748933452683,-470.23,0.00018904,2]
[363929051,1748933452692,-440.0,0.00018904,2]
[363929052,1748933452701,-2444.26857088,0.00018927,2]
[363929053,1748933452711,-207.4,0.00019029,2]
[363929054,1748933452720,-500.0,0.00019029,2]
[363929055,1748933452729,-500.0,0.00019029,2]
[363929056,1748933452738,-500.0,0.00019029,2]
[363929057,1748933452747,-500.0,0.00019029,2]
[363929058,1748933452756,-500.0,0.00019029,2]
[363929059,1748933452766,-500.0,0.00019029,2]
[363929060,1748933452775,-500.0,0.00019029,2]
[363929061,1748933452785,-500.0,0.00019029,2]
[363929062,1748933452794,-309.45654031,0.00019029,2]
[363929063,1748933452803,-2049.75681905,0.00019072,2]
[363929064,1748933452812,-4520.66680072,0.00019078,2]
[363929065,1748933452822,-1388.48,0.00019177,2]
[363929066,1748933452831,-440.0,0.00019178,2]
[363929067,1748933452840,-440.0,0.00019178,2]
[363929068,1748933452849,-440.0,0.00019178,2]
[363929069,1748933452859,-440.0,0.00019178,2]
[363929070,1748933452869,-440.0,0.00019178,2]
[363929071,1748933452879,-440.0,0.00019178,2]
[363929072,1748933452888,-440.0,0.00019178,2]
[363929073,1748933452897,-440.0,0.00019178,2]
[363929074,1748933452906,-440.0,0.00019178,2]
[363929075,1748933452915,-440.0,0.00019178,2]
[363929076,1748933452924,-440.0,0.00019178,2]
[363929077,1748933452934,-440.0,0.00019178,2]
[363929078,1748933452943,-440.0,0.00019178,2]
[363929079,1748933452952,-440.0,0.00019178,2]
[363929080,1748933452961,-440.0,0.00019178,2]
[363929081,1748933452970,-440.0,0.00019178,2]
[363929082,1748933452979,-440.0,0.00019178,2]
[363929083,1748933452988,-440.0,0.00019178,2]
[363929084,1748933452998,-554.7,0.00019178,2]
[363929085,1748933453007,-1422.91,0.00019178,2]
[363929086,1748933453016,-1957.17,0.00019178,2]
[363929087,1748933453026,-440.0,0.00019178,2]
[363929088,1748933453035,-440.0,0.00019178,2]
[363929089,1748933453044,-440.0,0.00019178,2]
[363929090,1748933453054,-886.05,0.00019178,2]
[363929091,1748933453063,-440.0,0.00019178,2]
[363929092,1748933453072,-318.51599,0.00019178,2]
[363929093,1748933453081,-440.0,0.00019178,2]
[363929094,1748933453091,-318.51599,0.00019178,2]
[363929095,1748933453100,-440.0,0.00019178,2]
[363929096,1748933453109,-1471.23,0.00019178,2]
[363929097,1748933453119,-654.81,0.00019178,2]
[363929098,1748933453128,-2390.55,0.00019178,2]
[363929099,1748933453138,-2074.06,0.00019178,2]
[363929100,1748933453147,-151.0,0.00019178,2]
[363929101,1748933453157,-2284.02,0.00019178,2]
[363929102,1748933453166,-440.0,0.00019178,2]
[363929103,1748933453175,-2371.77,0.00019178,2]
[363929104,1748933453185,-151.0,0.00019178,2]
[363929105,1748933453194,-521.81,0.00019178,2]
[363929106,1748933453204,-468.91,0.00019178,2]
[363929107,1748933453214,-484.71,0.00019178,2]
[363929108,1748933453223,-970.29,0.00019178,2]
[363929109,1748933453233,-440.0,0.00019178,2]
[363929110,1748933453242,-440.0,0.00019178,2]
[363929111,1748933453259,-1039.91,0.00019178,2]
[363929112,1748933453281,-440.0,0.00019178,2]
[363929113,1748933453307,-940.37,0.00019178,2]
[363929114,1748933453331,-440.0,0.00019178,2]
[363929115,1748933453352,-805.93,0.00019178,2]
[363929116,1748933453377,-1096.13,0.00019178,2]
[363929117,1748933453402,-440.0,0.00019178,2]
[363929118,1748933453427,-440.0,0.00019178,2]
[363929119,1748933453452,-813.99,0.00019178,2]
[363929120,1748933453475,-470.23,0.00019178,2]
[363929121,1748933453494,-440.0,0.00019178,2]
[363929122,1748933453505,-500.0,0.00019178,2]
[363929123,1748933453516,-500.0,0.00019178,2]
[363929124,1748933453526,-500.0,0.00019178,2]
[363929125,1748933453535,-500.0,0.00019178,2]
[363929126,1748933453544,-407.8543937,0.00019178,2]
[363929127,1748933453554,-151.0,0.00019178,2]
[363929128,1748933453563,-223.155668,0.00019178,2]
[363929129,1748933453573,-156.587,0.00019233,2]
[363929130,1748933453582,-162.380719,0.00019288,2]
[363929131,1748933453593,-2049.75681905,0.00019314,2]
[363929132,1748933453603,-8514.94143989,0.00019329,2]
[363929133,1748933453612,-168.3888056,0.00019343,2]
[363929134,1748933453712,-174.61919141,0.00019398,2]
[363929135,1748933453722,-1388.48,0.00019451,2]
[363929136,1748933453731,-440.0,0.00019452,2]
[363929137,1748933453741,-531.93942035,0.00019452,2]
[363929138,1748933453751,-440.0,0.00019452,2]
[363929139,1748933453761,-440.0,0.00019452,2]
[363929140,1748933453770,-440.0,0.00019452,2]
[363929141,1748933453780,-440.0,0.00019452,2]
[363929142,1748933453790,-440.0,0.00019452,2]
[363929143,1748933453800,-151.910188,0.00019452,2]
[363929144,1748933453810,-440.0,0.00019452,2]
[363929145,1748933453820,-554.7,0.00019452,2]
[363929146,1748933453829,-1422.91,0.00019452,2]
[363929147,1748933453838,-1957.17,0.00019452,2]
[363929148,1748933453848,-1712.149265,0.00019452,2]
[363929149,1748933453857,-440.0,0.00019452,2]
[363929150,1748933453866,-1712.149265,0.00019452,2]
[363929151,1748933453876,-440.0,0.00019452,2]
[363929152,1748933453885,-440.0,0.00019452,2]
[363929153,1748933453895,-151.0,0.00019452,2]
[363929154,1748933453906,-886.05,0.00019452,2]
[363929155,1748933453922,-440.0,0.00019452,2]
[363929156,1748933453931,-151.0,0.00019452,2]
[363929157,1748933453941,-440.0,0.00019452,2]
[363929158,1748933453950,-440.0,0.00019452,2]
[363929159,1748933453959,-1471.23,0.00019452,2]
[363929160,1748933453969,-294.341028,0.00019452,2]
[363929161,1748933453978,-654.81,0.00019452,2]
[363929162,1748933453988,-2390.55,0.00019452,2]
[363929163,1748933453997,-294.341028,0.00019452,2]
[363929164,1748933454006,-321.101702,0.00019452,2]
[363929165,1748933454016,-2074.06,0.00019452,2]
[363929166,1748933454025,-321.101702,0.00019452,2]
[363929167,1748933454035,-2284.02,0.00019452,2]
[363929168,1748933454044,-440.0,0.00019452,2]
[363929169,1748933454053,-2371.77,0.00019452,2]
[363929170,1748933454062,-521.81,0.00019452,2]
[363929171,1748933454072,-468.91,0.00019452,2]
[363929172,1748933454081,-484.71,0.00019452,2]
[363929173,1748933454090,-970.29,0.00019452,2]
[363929174,1748933454099,-440.0,0.00019452,2]
[363929175,1748933454110,-440.0,0.00019452,2]
[363929176,1748933454120,-1039.91,0.00019452,2]
[363929177,1748933454130,-440.0,0.00019452,2]
[363929178,1748933454140,-940.37,0.00019452,2]
[363929179,1748933454150,-440.0,0.00019452,2]
[363929180,1748933454160,-805.93,0.00019452,2]
[363929181,1748933454170,-1096.13,0.00019452,2]
[363929182,1748933454180,-440.0,0.00019452,2]
[363929183,1748933454190,-440.0,0.00019452,2]
[363929184,1748933454199,-813.99,0.00019452,2]
[363929185,1748933454208,-470.23,0.00019452,2]
[363929186,1748933454217,-440.0,0.00019452,2]
[363929187,1748933454226,-181.08010149,0.00019453,2]
[363929188,1748933454235,-500.0,0.00019482,2]
[363929189,1748933454245,-187.78006525,0.00019508,2]
[363929190,1748933454254,-577.30699267,0.0001954,2]
[363929191,1748933454263,-2049.75681905,0.00019555,2]
[363929192,1748933454273,-267.76240728,0.00019563,2]
[363929193,1748933454283,-441.479,0.00019622,2]
[363929194,1748933454292,-177.92407056,0.00019622,2]
[363929195,1748933454301,-1388.48,0.00019725,2]
[363929196,1748933454310,-1388.48,0.00019725,2]
[363929197,1748933454323,-1388.48,0.00019725,2]
[363929198,1748933454332,-1388.48,0.00019725,2]
[363929199,1748933454341,-1388.65479354,0.00019725,2]
[363929200,1748933454351,-440.0,0.00019726,2]
[363929201,1748933454360,-151.0,0.00019726,2]
[363929202,1748933454370,-440.0,0.00019726,2]
[363929203,1748933454379,-440.0,0.00019726,2]
[363929204,1748933454389,-151.0,0.00019726,2]
[363929205,1748933454400,-440.0,0.00019726,2]
[363929206,1748933454409,-440.0,0.00019726,2]
[363929207,1748933454419,-430.0,0.00019726,2]
[363929208,1748933454428,-1704.150602,0.00019726,2]
[363929209,1748933454438,-1704.150602,0.00019726,2]
[363929210,1748933454447,-440.0,0.00019726,2]
[363929211,1748933454456,-554.7,0.00019726,2]
[363929212,1748933454465,-1422.91,0.00019726,2]
[363929213,1748933454474,-1957.17,0.00019726,2]
[363929214,1748933454484,-280.56392787,0.00019726,2]
[363929215,1748933454494,-440.0,0.00019726,2]
[363929216,1748933454503,-440.0,0.00019726,2]
[363929217,1748933454513,-886.05,0.00019726,2]
[363929218,1748933454523,-440.0,0.00019726,2]
[363929219,1748933454532,-440.0,0.00019726,2]
[363929220,1748933454541,-440.0,0.00019726,2]
[363929221,1748933454550,-1471.23,0.00019726,2]
[363929222,1748933454559,-654.81,0.00019726,2]
[363929223,1748933454569,-2390.55,0.00019726,2]
[363929224,1748933454578,-2074.06,0.00019726,2]
[363929225,1748933454587,-151.0,0.00019726,2]
[363929226,1748933454596,-2284.02,0.00019726,2]
[363929227,1748933454605,-199.195395,0.00019726,2]
[363929228,1748933454614,-199.195395,0.00019726,2]
[363929229,1748933454623,-440.0,0.00019726,2]
[363929230,1748933454632,-2371.77,0.00019726,2]
[363929231,1748933454642,-152.554458,0.00019726,2]
[363929232,1748933454651,-521.81,0.00019726,2]
[363929233,1748933454661,-468.91,0.00019726,2]
[363929234,1748933454670,-484.71,0.00019726,2]
[363929235,1748933454679,-970.29,0.00019726,2]
[363929236,1748933454689,-440.0,0.00019726,2]
[363929237,1748933454698,-440.0,0.00019726,2]
[363929238,1748933454708,-1039.91,0.00019726,2]
[363929239,1748933454717,-440.0,0.00019726,2]
[363929240,1748933454727,-940.37,0.00019726,2]
[363929241,1748933454737,-440.0,0.00019726,2]
[363929242,1748933454746,-805.93,0.00019726,2]
[363929243,1748933454755,-1096.13,0.00019726,2]
[363929244,1748933454765,-440.0,0.00019726,2]
[363929245,1748933454774,-440.0,0.00019726,2]
[363929246,1748933454783,-813.99,0.00019726,2]
[363929247,1748933454792,-470.23,0.00019726,2]
[363929248,1748933454802,-528.28,0.00019726,2]
[363929249,1748933454811,-577.30699267,0.00019733,2]
[363929250,1748933454820,-2049.75681905,0.00019797,2]
[363929251,1748933454829,-583.0,0.00019821,2]
[363929252,1748933454838,-4520.66680072,0.000199,2]
[363929253,1748933454847,-373.9990764,0.00019945,2]
[363929254,1748933454857,-364.5107659,0.00019945,2]
[363929255,1748933454866,-364.5107659,0.00019945,2]
[363929256,1748933454875,-700.0,0.00019964,2]
[363929257,1748933454884,-500.38731581,0.00019973,2]
[363929258,1748933454894,-500.0,0.00019973,2]
[363929259,1748933454903,-505.00855098,0.00019973,2]
[363929260,1748933454912,-500.0,0.00019973,2]
[363929261,1748933454921,-305.39461688,0.00019973,2]
[363929262,1748933454931,-500.0,0.00019973,2]
[363929263,1748933454940,-500.91748917,0.00019973,2]
[363929264,1748933454949,-500.0,0.00019973,2]
[363929265,1748933454959,-597.78812706,0.00019973,2]
[363929266,1748933454968,-200.8465109,0.00019973,2]
[363929267,1748933454977,-152.53205532,0.00019973,2]
[363929268,1748933454986,-500.0,0.00019973,2]
[363929269,1748933454995,-501.90722136,0.00019973,2]
[363929270,1748933455004,-267.00703625,0.00019973,2]
[363929271,1748933455013,-500.0,0.00019973,2]
[363929272,1748933455022,-500.92514887,0.00019973,2]
[363929273,1748933455032,-163.5396541,0.00019973,2]
[363929274,1748933455041,-500.0,0.00019973,2]
[363929275,1748933455050,-600.0,0.00019973,2]
[363929276,1748933455060,-500.0,0.00019973,2]
[363929277,1748933455069,-500.0,0.00019973,2]
[363929278,1748933455078,-500.0,0.00019973,2]
[363929279,1748933455087,-500.0,0.00019973,2]
[363929280,1748933455096,-513.98861648,0.00019973,2]
[363929281,1748933455104,-151.0,0.0001999,2]
[363929282,1748933455114,-151.0,0.0001999,2]
[363929283,1748933455123,-151.0,0.0001999,2]
[363929284,1748933455132,-151.0,0.0001999,2]
[363929285,1748933455142,-325.072874,0.0001999,2]
[363929286,1748933455151,-325.072874,0.0001999,2]
[363929287,1748933455160,-298.189104,0.0001999,2]
[363929288,1748933455169,-298.189104,0.0001999,2]
[363929289,1748933455178,-375.86446477,0.0001999,2]
[363929290,1748933455189,-151.0,0.00019999,2]
[363929291,1748933455198,-318.51599,0.00019999,2]
[363929292,1748933455208,-151.0,0.00019999,2]
[363929293,1748933455217,-318.51599,0.00019999,2]
[363929294,1748933455226,-234479.25710385,0.0002,2]
[363929295,1748933455247,-388.13637237,0.0002,2]
[363929296,1748933455358,-430.0,0.00016438,2]
[363929297,1748933455369,-440.0,0.00016438,2]
[363929298,1748933455378,-286.846693,0.00017534,2]
[363929299,1748933455387,-286.846693,0.00018082,2]
[363929300,1748933455397,-286.846693,0.0001863,2]
[363929301,1748933455407,-286.846693,0.00019178,2]
[363929302,1748933455417,-286.846693,0.00019726,2]
[363929303,1748933455426,-5126.47892162,0.0002,2]
[363929304,1748933466149,-2000.0,0.00023014,120]
[363929305,1748933466189,-2000.0,0.00023562,120]
[363929306,1748933466238,-1261.24597688,0.00024,120]
[363929307,1748933466271,-2000.0,0.0002411,120]
[363929308,1748933490832,200.0,0.00024467,120]
[363929309,1748933492444,150.5,0.0002329,120]
[363929310,1748933492938,150.5,0.0002328,120]
[363929311,1748933493401,279.95,0.0002327,120]
[363929312,1748933515442,164.42927682,0.00023956,120]
[363929313,1748933551275,200.0,0.00023143,120]
[363929314,1748933611838,200.0,0.00023004,120]
[363929315,1748933670763,200.0,0.00023961,120]
[363929316,1748933730856,200.0,0.00023064,120]
[363929317,1748933748461,24900.0,0.00015506,2]
[363929318,1748933750742,703969.76306458,0.00024658,120]
[363929319,1748933790746,200.0,0.00024471,120]
[363929321,1748933850745,200.0,0.00022955,120]
[363929322,1748933852209,548.24076,0.00024,120]
[363929323,1748933875490,164.42927682,0.00023931,120]
[363929324,1748933911875,200.0,0.00023593,120]
[363929325,1748933970743,200.0,0.00023573,120]
[363929326,1748933984817,-310.51901081,0.00015643,2]
[363929327,1748933992268,-211.3468755,0.00015643,2]
[363929328,1748933999270,202.24246841,0.0001552,2]
[363929329,1748934006735,-342.10279694,0.00015642,2]
[363929330,1748934008930,-310.51901081,0.00015642,2]
[363929331,1748934022360,-211.3468755,0.00015642,2]
[363929332,1748934036704,-310.51901081,0.00015642,2]
[363929333,1748934052394,-25.51230594,0.00015642,2]
[363929334,1748934052418,-285.00670487,0.00015642,2]